bitfinex-derivatives/quotes_BTCF0:USTF0_20240925
["timestamp","ask_amount","ask_price","bid_price","bid_amount"]
[1727294458346,0.07903,63270.0,63269.0,0.001]
[1727294458551,0.3678,63271.0,63270.0,0.001]
[1727294458552,0.454829,63271.0,63270.0,0.001]
[1727294458752,0.3758,63271.0,63270.0,0.08003]
[1727294459053,0.3758,63271.0,63270.0,0.07903]
[1727294459054,0.3678,63271.0,63270.0,0.07903]
[1727294459257,0.3608,63271.0,63270.0,0.07903]
[1727294460242,0.3758,63271.0,63270.0,0.002]
[1727294461154,0.454829,63271.0,63270.0,0.002]
[1727294461360,0.50334803,63271.0,63270.0,0.002]
[1727294461765,0.51152335,63271.0,63270.0,0.002]
[1727294462045,0.079042,63261.0,63253.0,0.22205055]
[1727294462247,1.49847918,63271.0,63253.0,0.22205055]
[1727294462248,0.04851918,63260.0,63259.0,0.079044]
[1727294462453,0.04851913,63260.0,63257.0,0.3608]
[1727294462650,0.04851913,63259.0,63258.0,0.349045]
[1727294462847,0.04851875,63259.0,63258.0,0.42809]
[1727294463146,0.06039435,63270.0,63258.0,0.42809]
[1727294463147,0.0037,63270.0,63269.0,0.079031]
[1727294463349,0.3608,63279.0,63278.0,0.07902]
[1727294463556,0.0037,63280.0,63269.0,0.87]
[1727294463557,0.079012,63285.0,63283.0,0.079014]
[1727294463855,0.079012,63285.0,63284.0,0.079012]
[1727294464051,0.439812,63285.0,63284.0,0.079012]
[1727294466259,0.462812,63285.0,63284.0,0.080012]
[1727294466459,0.013452,63285.0,63284.0,1.07504]
[1727294466663,0.17225816,63303.0,63294.0,0.079]
[1727294466853,0.17225816,63303.0,63302.0,0.07899]
[1727294467053,0.0037,63313.0,63302.0,0.9608]
[1727294467255,0.0037,63317.0,63312.0,0.27]
[1727294467554,0.17207459,63317.0,63312.0,0.6308]
[1727294467750,0.0037,63325.0,63316.0,0.078972]
[1727294467751,0.17207459,63319.0,63316.0,0.078972]
[1727294467953,0.17207459,63318.0,63316.0,0.078972]
[1727294468357,0.17207459,63320.0,63318.0,0.078969]
[1727294468660,0.17207459,63324.0,63323.0,0.078964]
[1727294469163,0.17207459,63324.0,63316.0,0.078972]
[1727294469351,0.1719014,63322.0,63316.0,0.078972]
[1727294469553,0.004,63320.0,63318.0,0.001]
[1727294469758,0.04847365,63319.0,63318.0,0.001]
[1727294469963,0.04847365,63319.0,63316.0,0.078972]
[1727294470155,0.04847365,63318.0,63316.0,0.078972]
[1727294470356,0.04847365,63318.0,63309.0,0.3608]
[1727294470357,0.40927365,63317.0,63312.0,0.078977]
[1727294470557,0.17174581,63314.0,63312.0,0.078977]
[1727294470764,0.04847365,63313.0,63312.0,0.078977]
[1727294470954,0.04848106,63313.0,63312.0,0.078977]
[1727294472153,0.05248106,63313.0,63312.0,0.079977]
[1727294472569,0.05248106,63313.0,63312.0,0.080977]
[1727294474163,0.05247751,63313.0,63312.0,0.080977]
[1727294474957,0.05247751,63313.0,63312.0,0.002]
[1727294475973,0.05248275,63313.0,63312.0,0.002]
[1727294476569,0.004,63313.0,63312.0,0.002]
[1727294476968,0.004,63313.0,63312.0,0.080977]
[1727294478582,0.082976,63313.0,63312.0,0.002]
[1727294479070,0.004,63313.0,63312.0,0.080977]
[1727294480762,0.004,63313.0,63305.0,0.078986]
[1727294480973,0.439784,63308.0,63305.0,0.078986]
[1727294481770,0.439784,63308.0,63299.0,0.00236919]
[1727294481771,0.07899,63302.0,63301.0,0.07899]
[1727294481982,0.078992,63300.0,63299.0,0.00236919]
[1727294484176,0.0304,63300.0,63299.0,0.08136319]
[1727294484569,0.0314,63300.0,63299.0,0.08236319]
[1727294484876,0.08389253,63300.0,63299.0,0.08236319]
[1727294485278,0.08289253,63300.0,63299.0,0.08136319]
[1727294485581,0.08589253,63300.0,63299.0,0.00336919]
[1727294485878,0.16488453,63300.0,63299.0,0.00336919]
[1727294487078,0.16388453,63300.0,63299.0,0.00436919]
[1727294487373,0.16388453,63300.0,63299.0,0.08336319]
[1727294487578,0.08489253,63300.0,63299.0,0.08336319]
[1727294487774,0.08389253,63300.0,63299.0,0.08336319]
[1727294487975,0.08389253,63300.0,63299.0,0.08236319]
[1727294488175,0.08389253,63300.0,63299.0,0.08336319]
[1727294488378,0.44469253,63300.0,63299.0,0.08336319]
[1727294489084,0.43969253,63300.0,63299.0,0.00336919]
[1727294489282,0.51868453,63300.0,63299.0,0.00336919]
[1727294489574,0.52368453,63300.0,63299.0,0.00336919]
[1727294489781,0.52368641,63300.0,63299.0,0.00336919]
[1727294489982,0.52368641,63300.0,63299.0,0.00236919]
[1727294490877,0.52368641,63300.0,63299.0,0.00336919]
[1727294491071,0.52368641,63300.0,63299.0,0.00436919]
[1727294491470,0.51868641,63300.0,63299.0,0.00336919]
[1727294491671,0.475192,63300.0,63299.0,0.00436919]
[1727294491873,0.554184,63300.0,63299.0,0.00436919]
[1727294492076,0.554184,63300.0,63285.0,0.0037]
[1727294492077,0.078998,63296.0,63285.0,0.0037]
[1727294492285,0.079001,63293.0,63292.0,0.079002]
[1727294492873,0.3608,63294.0,63293.0,0.079001]
[1727294494089,0.3618,63294.0,63293.0,0.080001]
[1727294494481,0.001,63294.0,63293.0,0.080001]
[1727294494777,0.3912,63300.0,63298.0,0.078994]
[1727294494778,0.078994,63299.0,63298.0,0.078994]
[1727294494969,0.3912,63300.0,63299.0,0.078994]
[1727294496194,0.3912,63300.0,63295.0,0.078998]
[1727294496375,0.078997,63296.0,63295.0,0.078998]
[1727294496781,0.3912,63300.0,63291.0,0.27]
[1727294496982,0.078996,63297.0,63295.0,0.078997]
[1727294497177,0.078996,63297.0,63291.0,0.27]
[1727294497178,0.078996,63297.0,63296.0,0.078997]
[1727294497377,0.3608,63297.0,63290.0,0.079004]
[1727294497676,0.3608,63291.0,63290.0,0.079004]
[1727294499184,0.3668,63291.0,63290.0,0.080004]
[1727294499578,0.3678,63291.0,63290.0,0.080004]
[1727294500386,0.3678,63291.0,63290.0,0.081004]
[1727294500984,0.3668,63291.0,63290.0,0.080004]
[1727294501191,0.3678,63291.0,63290.0,0.081004]
[1727294501782,0.3678,63291.0,63290.0,0.080004]
[1727294502486,0.3678,63291.0,63290.0,0.081004]
[1727294502695,0.3678,63291.0,63290.0,0.080004]
[1727294503389,0.446804,63291.0,63290.0,0.081004]
[1727294503581,0.446804,63291.0,63290.0,0.002]
[1727294503782,0.3618,63291.0,63290.0,0.080005]
[1727294503982,0.3618,63291.0,63290.0,0.083005]
[1727294504587,0.3618,63291.0,63290.0,0.081005]
[1727294504588,0.007,63291.0,63290.0,0.081005]
[1727294504786,0.007,63291.0,63290.0,0.16001]
[1727294504992,0.001,63291.0,63290.0,0.15901]
[1727294505195,0.007,63291.0,63290.0,0.16001]
[1727294505687,0.006,63291.0,63290.0,0.15901]
[1727294505893,0.007,63291.0,63290.0,0.15901]
[1727294506087,0.007,63291.0,63290.0,0.080005]
[1727294506482,0.3668,63291.0,63290.0,0.080005]
[1727294506803,0.47296915,63291.0,63286.0,0.079009]
[1727294506990,0.47296915,63291.0,63282.0,0.36172]
[1727294506991,0.20418702,63287.0,63282.0,0.36172]
[1727294507188,0.21738015,63286.0,63285.0,0.079011]
[1727294508285,0.13836915,63286.0,63285.0,0.079011]
[1727294508685,0.13837285,63286.0,63285.0,0.079011]
[1727294509379,0.21738285,63286.0,63285.0,0.079011]
[1727294509581,0.21838285,63286.0,63285.0,0.079011]
[1727294509991,0.22438285,63286.0,63285.0,0.079011]
[1727294511491,0.14537285,63286.0,63285.0,0.079011]
[1727294511681,0.079014,63283.0,63281.0,0.079015]
[1727294511887,0.46597285,63282.0,63281.0,0.079015]
[1727294512695,0.46597285,63282.0,63281.0,0.349015]
[1727294513287,0.46797285,63282.0,63281.0,0.349015]
[1727294513592,0.10717473,63282.0,63281.0,0.349015]
[1727294513798,0.10817473,63282.0,63281.0,0.349015]
[1727294515987,0.31248194,63282.0,63281.0,0.349015]
[1727294516493,0.31246431,63282.0,63281.0,0.349015]
[1727294516890,0.31246469,63282.0,63281.0,0.349015]
[1727294517384,0.05150284,63282.0,63281.0,1.41256028]
[1727294517592,0.05150284,63282.0,63281.0,0.25946428]
[1727294517889,0.05150284,63282.0,63281.0,0.33848028]
[1727294518590,0.05150284,63282.0,63281.0,0.81256028]
[1727294518895,0.05050284,63282.0,63281.0,0.81756028]
[1727294519096,0.05050284,63282.0,63281.0,0.26446428]
[1727294519487,0.10817473,63282.0,63281.0,0.25946428]
[1727294519789,0.05150284,63282.0,63281.0,0.25946428]
[1727294519998,0.04950284,63282.0,63281.0,0.26346428]
[1727294520500,0.10617473,63282.0,63281.0,0.43946428]
[1727294520702,0.05150284,63282.0,63281.0,0.43946428]
[1727294521391,0.10817473,63282.0,63281.0,0.43946428]
[1727294521702,0.003,63282.0,63281.0,0.43946428]
[1727294524396,0.003,63282.0,63281.0,0.51848028]
[1727294525697,0.0037,63292.0,63287.0,0.079009]
[1727294525902,0.0329,63296.0,63287.0,0.079009]
[1727294525903,0.0329,63296.0,63288.0,0.3608]
[1727294526099,0.36164,63300.0,63293.0,0.18]
[1727294526286,0.3608,63300.0,63299.0,0.258994]
[1727294527595,0.3648,63300.0,63299.0,0.259994]
[1727294527788,0.004,63300.0,63299.0,0.259994]
[1727294528187,0.05249153,63300.0,63299.0,0.259994]
[1727294528497,0.05249153,63300.0,63299.0,0.260994]
[1727294528498,0.004,63300.0,63299.0,0.260994]
[1727294528799,0.082992,63300.0,63299.0,0.260994]
[1727294529291,0.082992,63300.0,63299.0,0.182]
[1727294529494,0.05249493,63300.0,63293.0,0.079001]
[1727294529687,0.3608,63295.0,63293.0,0.079001]
[1727294529893,0.04849493,63294.0,63293.0,0.079001]
[1727294530191,0.079006,63290.0,63288.0,0.079006]
[1727294531004,0.079006,63290.0,63289.0,0.079006]
[1727294531204,0.12750453,63290.0,63289.0,0.079006]
[1727294531390,0.12850668,63290.0,63289.0,0.079006]
[1727294532499,0.12950668,63290.0,63289.0,0.079006]
[1727294532701,0.16260668,63290.0,63289.0,0.079006]
[1727294533195,0.0341,63290.0,63289.0,0.079006]
[1727294533395,0.0371,63290.0,63289.0,0.079006]
[1727294533802,0.0314,63293.0,63292.0,0.079002]
[1727294534106,0.0037,63303.0,63302.0,0.07899]
[1727294534294,0.1140947,63303.0,63299.0,0.18]
[1727294534494,0.0484947,63302.0,63299.0,0.18]
[1727294534698,0.0484947,63301.0,63299.0,0.18]
[1727294534905,0.0484947,63300.0,63299.0,0.18]
[1727294535407,0.0484947,63300.0,63299.0,0.258994]
[1727294535994,0.0484912,63300.0,63299.0,0.259994]
[1727294536303,0.04849276,63300.0,63299.0,0.259994]
[1727294536507,0.04849276,63300.0,63299.0,0.079994]
[1727294536817,0.04849276,63300.0,63299.0,0.080994]
[1727294537404,0.05349276,63300.0,63299.0,0.080994]
[1727294537905,0.04849276,63300.0,63299.0,0.079994]
[1727294538108,0.05349276,63300.0,63299.0,0.080994]
[1727294539014,0.05349276,63300.0,63299.0,0.260994]
[1727294541007,0.05349189,63300.0,63299.0,0.260994]
[1727294544812,0.11006458,63303.0,63300.0,0.078991]
[1727294545201,0.11006458,63303.0,63301.0,0.078991]
[1727294545713,0.11006458,63303.0,63302.0,0.0630588]
[1727294546009,0.11006458,63303.0,63301.0,0.0630588]
[1727294546212,0.11006458,63303.0,63302.0,0.1420488]
[1727294546603,0.11006458,63303.0,63302.0,0.07899]
[1727294547700,0.11006458,63303.0,63302.0,0.07999]
[1727294547906,0.11006458,63303.0,63302.0,0.08099]
[1727294549215,0.11006458,63303.0,63302.0,0.14406795]
[1727294549416,0.11006458,63303.0,63302.0,0.08099]
[1727294551413,0.03107558,63303.0,63302.0,0.08099]
[1727294551613,0.3608,63315.0,63302.0,0.12083409]
[1727294551806,0.02908469,63312.0,63310.0,0.18]
[1727294552007,0.03,63314.0,63310.0,0.18]
[1727294552716,0.03,63314.0,63310.0,0.25898]
[1727294553420,0.03,63314.0,63310.0,0.25998]
[1727294553921,0.078977,63313.0,63312.0,0.078977]
[1727294554117,0.03,63314.0,63313.0,0.078976]
[1727294555319,0.108975,63314.0,63313.0,0.078976]
[1727294555820,0.108975,63314.0,63313.0,0.079976]
[1727294556522,0.108975,63314.0,63313.0,0.080976]
[1727294558422,0.03,63314.0,63313.0,0.080976]
[1727294560511,0.03,63314.0,63313.0,0.079976]
[1727294560712,0.03,63314.0,63313.0,0.080976]
[1727294561619,0.108975,63314.0,63313.0,0.002]
[1727294561812,0.582815,63314.0,63313.0,0.002]
[1727294562010,0.108975,63314.0,63313.0,0.002]
[1727294562209,0.108975,63314.0,63302.0,0.06308418]
[1727294562210,0.078984,63307.0,63306.0,0.078985]
[1727294562415,0.439784,63307.0,63306.0,0.078985]
[1727294562611,0.439784,63307.0,63304.0,0.04731313]
[1727294562612,0.078986,63305.0,63304.0,0.04731313]
[1727294562810,0.078986,63305.0,63301.0,0.06308418]
[1727294562811,0.18,63305.0,63301.0,0.04731313]
[1727294563220,0.078988,63304.0,63303.0,0.078988]
[1727294563521,0.07899,63302.0,63301.0,0.04731313]
[1727294563910,0.07899,63302.0,63301.0,0.078991]
[1727294565716,0.08099,63302.0,63301.0,0.078991]
[1727294566121,0.07899,63302.0,63301.0,0.078991]
[1727294566320,0.002,63302.0,63301.0,0.079991]
[1727294566729,0.003,63302.0,63301.0,0.079991]
[1727294567227,0.001,63302.0,63301.0,0.078991]
[1727294567529,0.003,63302.0,63301.0,0.080991]
[1727294567717,0.003,63302.0,63301.0,0.12830413]
[1727294568120,0.002,63302.0,63301.0,0.12730413]
[1727294568412,0.003,63302.0,63301.0,0.12830413]
[1727294569020,0.002,63302.0,63301.0,0.12730413]
[1727294569221,0.002,63302.0,63301.0,0.079991]
[1727294569629,0.002,63302.0,63301.0,0.080991]
[1727294570228,0.001,63302.0,63301.0,0.079991]
[1727294570419,0.002,63302.0,63301.0,0.080991]
[1727294570821,0.078986,63305.0,63302.0,0.078989]
[1727294571222,0.078989,63303.0,63302.0,0.078989]
[1727294571829,0.078986,63305.0,63302.0,0.078989]
[1727294572231,0.078986,63305.0,63304.0,0.078987]
[1727294572931,0.079986,63305.0,63304.0,0.078987]
[1727294573424,0.078986,63305.0,63304.0,0.078987]
[1727294573627,0.079986,63305.0,63304.0,0.079987]
[1727294574019,0.080986,63305.0,63304.0,0.080987]
[1727294578138,0.079986,63305.0,63304.0,0.079987]
[1727294578435,0.080986,63305.0,63304.0,0.080987]
[1727294578928,0.079986,63305.0,63304.0,0.079987]
[1727294579329,0.080986,63305.0,63304.0,0.080987]
[1727294579727,0.002,63305.0,63304.0,0.080987]
[1727294581529,0.002,63305.0,63304.0,0.079987]
[1727294581735,0.002,63305.0,63304.0,0.080987]
[1727294582131,0.001,63305.0,63304.0,0.079987]
[1727294582337,0.002,63305.0,63304.0,0.080987]
[1727294582840,0.001,63305.0,63304.0,0.079987]
[1727294583142,0.002,63305.0,63304.0,0.080987]
[1727294583941,0.0337,63314.0,63313.0,0.078976]
[1727294584144,0.3608,63321.0,63313.0,0.3608]
[1727294584444,0.3608,63321.0,63320.0,0.078967]
[1727294586334,0.3608,63321.0,63320.0,0.079967]
[1727294587528,0.3618,63321.0,63320.0,0.080967]
[1727294588641,0.001,63321.0,63320.0,0.080967]
[1727294589847,0.001,63321.0,63320.0,0.520734]
[1727294590036,0.001,63321.0,63320.0,0.583034]
[1727294592042,0.02797502,63333.0,63329.0,0.078956]
[1727294592248,0.02797502,63333.0,63330.0,0.078955]
[1727294592542,0.07895,63334.0,63330.0,0.078955]
[1727294592736,0.04846796,63333.0,63331.0,0.078954]
[1727294592932,0.07895,63334.0,63326.0,0.5416]
[1727294593136,0.04846795,63333.0,63326.0,0.5408]
[1727294593445,0.07895,63334.0,63331.0,0.078953]
[1727294594436,0.001,63333.0,63331.0,0.078953]
[1727294595543,0.001,63333.0,63331.0,0.079953]
[1727294595753,0.10843599,63334.0,63331.0,0.080953]
[1727294596639,0.10843599,63334.0,63332.0,0.078952]
[1727294596950,0.078951,63333.0,63332.0,0.078952]
[1727294597444,0.079951,63333.0,63332.0,0.078952]
[1727294597949,1.07468,63333.0,63326.0,0.00088]
[1727294598248,0.07896,63326.0,63319.0,0.078968]
[1727294598448,0.078965,63322.0,63313.0,0.5416]
[1727294598751,0.078966,63321.0,63319.0,0.078968]
[1727294598940,0.078966,63321.0,63313.0,0.5408]
[1727294599342,0.078966,63321.0,63319.0,0.001]
[1727294600251,0.078966,63321.0,63320.0,0.078967]
[1727294600952,0.080966,63321.0,63320.0,0.078967]
[1727294601448,0.082966,63321.0,63320.0,0.079967]
[1727294601637,0.080966,63321.0,63320.0,0.079967]
[1727294601834,0.083966,63321.0,63320.0,0.080967]
[1727294603453,0.11256027,63321.0,63320.0,0.080967]
[1727294604655,0.11256027,63321.0,63320.0,0.002]
[1727294604656,0.47336027,63321.0,63320.0,0.002]
[1727294604957,0.52183844,63321.0,63320.0,0.002]
[1727294605142,0.07898,63310.0,63300.0,0.5408]
[1727294605345,0.078982,63308.0,63307.0,0.00236935]
[1727294605547,0.12746352,63308.0,63307.0,0.00236935]
[1727294606354,0.66826352,63308.0,63307.0,0.00236935]
[1727294606859,0.72491045,63308.0,63307.0,0.00236935]
[1727294607058,0.078991,63301.0,63300.0,0.3608]
[1727294607258,0.12747252,63301.0,63300.0,0.3608]
[1727294607551,0.1274806,63301.0,63300.0,0.3608]
[1727294608349,0.078996,63297.0,63292.0,0.18]
[1727294608548,0.0484896,63296.0,63292.0,0.18]
[1727294608754,0.0484896,63296.0,63293.0,0.17135311]
[1727294609159,0.078999,63295.0,63289.0,0.3608]
[1727294609343,0.0484896,63294.0,63292.0,0.008]
[1727294609548,0.0484896,63293.0,63292.0,0.008]
[1727294609744,0.48829753,63293.0,63292.0,0.008]
[1727294609948,0.439801,63293.0,63292.0,0.008]
[1727294610158,0.48829909,63293.0,63292.0,0.008]
[1727294610659,0.48829909,63293.0,63292.0,0.015]
[1727294611362,0.41229809,63293.0,63292.0,0.087002]
[1727294611661,0.05149809,63293.0,63292.0,0.079002]
[1727294611846,0.53335751,63301.0,63299.0,0.078993]
[1727294612052,0.3608,63307.0,63306.0,0.078985]
[1727294613145,0.3608,63307.0,63306.0,0.079985]
[1727294613362,0.3628,63307.0,63306.0,0.079985]
[1727294615047,0.3608,63307.0,63306.0,0.079985]
[1727294615253,0.3608,63307.0,63306.0,0.080985]
[1727294615659,0.3608,63307.0,63306.0,0.079985]
[1727294615859,0.3608,63307.0,63306.0,0.080985]
[1727294616660,0.0303,63312.0,63311.0,0.078979]
[1727294618160,0.0303,63312.0,63311.0,0.079979]
[1727294618368,0.0303,63312.0,63311.0,0.080979]
[1727294621259,0.3608,63319.0,63311.0,0.002]
[1727294621664,0.078971,63318.0,63314.0,0.078974]
[1727294621866,0.38986269,63319.0,63314.0,0.078974]
[1727294622868,0.38986269,63319.0,63314.0,0.079974]
[1727294623067,0.078973,63316.0,63314.0,0.079974]
[1727294623969,0.078974,63315.0,63314.0,0.079974]
[1727294624368,0.078974,63315.0,63314.0,0.080974]
[1727294624867,0.078974,63315.0,63314.0,0.079974]
[1727294625075,0.078974,63315.0,63314.0,0.080974]
[1727294625277,0.439774,63315.0,63314.0,0.080974]
[1727294625678,0.3608,63315.0,63314.0,0.080974]
[1727294626776,0.3608,63315.0,63314.0,0.260974]
[1727294626986,0.17255751,63323.0,63319.0,0.078969]
[1727294627286,0.04847733,63322.0,63320.0,0.3608]
[1727294627483,0.04847733,63321.0,63320.0,0.439767]
[1727294628879,0.04847733,63321.0,63320.0,0.440767]
[1727294629285,0.0304,63325.0,63324.0,0.078962]
[1727294629784,0.0788725,63325.0,63324.0,0.078962]
[1727294630491,0.0304,63325.0,63324.0,0.079962]
[1727294631188,0.0788725,63325.0,63324.0,0.080962]
[1727294631777,0.04847237,63325.0,63324.0,0.080962]
[1727294634095,0.15719441,63327.0,63326.0,0.07896]
[1727294634391,0.05948927,63329.0,63328.0,0.078957]
[1727294635785,0.05948927,63329.0,63328.0,0.079957]
[1727294636686,0.05948927,63329.0,63328.0,0.080957]
[1727294639196,0.13844527,63329.0,63328.0,0.080957]
[1727294639991,0.13844527,63329.0,63328.0,0.002]
[1727294640190,0.05948927,63329.0,63323.0,0.18]
[1727294640391,0.05948927,63329.0,63328.0,0.078957]
[1727294641298,0.13844527,63329.0,63328.0,0.078957]
[1727294641988,0.18791775,63329.0,63328.0,0.079957]
[1727294642591,0.18691775,63329.0,63328.0,0.079957]
[1727294642791,0.18791775,63329.0,63328.0,0.080957]
[1727294646603,0.08057248,63329.0,63328.0,0.080957]
[1727294648295,0.25488457,63329.0,63328.0,0.080957]
[1727294648689,0.08157248,63329.0,63328.0,0.080957]
[1727294649101,0.0331,63329.0,63328.0,0.080957]
[1727294651405,0.472856,63329.0,63328.0,0.002]
[1727294653798,0.551812,63329.0,63328.0,0.002]
[1727294654195,0.472856,63329.0,63328.0,0.002]
[1727294659713,0.731812,63329.0,63328.0,0.002]
[1727294660011,0.652856,63329.0,63328.0,0.002]
[1727294660215,0.472856,63329.0,63328.0,0.002]
[1727294664212,0.52133043,63329.0,63328.0,0.002]
[1727294669617,0.52133019,63329.0,63328.0,0.002]
[1727294672106,0.472856,63329.0,63328.0,0.002]
[1727294672408,0.078965,63322.0,63321.0,0.04717387]
[1727294672704,0.3608,63322.0,63320.0,0.078967]
[1727294672911,0.078966,63321.0,63320.0,0.12614087]
[1727294673314,0.3608,63322.0,63321.0,0.078966]
[1727294673708,0.001,63322.0,63321.0,0.158932]
[1727294674416,0.003,63322.0,63321.0,0.158932]
[1727294674818,0.001,63322.0,63321.0,0.158932]
[1727294675116,0.003,63322.0,63321.0,0.159932]
[1727294679013,0.003,63322.0,63321.0,0.080966]
[1727294680320,0.003,63322.0,63321.0,0.159932]
[1727294681324,0.05147086,63322.0,63321.0,0.159932]
[1727294683624,0.05147086,63322.0,63321.0,0.080966]
[1727294684221,0.05146986,63322.0,63321.0,0.080966]
[1727294685317,0.05146986,63322.0,63321.0,0.159932]
[1727294685523,0.003,63322.0,63321.0,0.159932]
[1727294686931,0.003,63322.0,63321.0,0.080966]
[1727294687926,0.003,63322.0,63321.0,0.15982122]
[1727294688233,0.003,63322.0,63321.0,0.080966]
[1727294690337,0.003,63322.0,63321.0,0.200966]
[1727294695638,0.003,63322.0,63321.0,0.080966]
[1727294695939,0.003,63322.0,63321.0,0.200966]
[1727294696343,0.003,63322.0,63321.0,0.080966]
[1727294696545,0.13043723,63322.0,63321.0,0.002]
[1727294696731,0.16313723,63322.0,63321.0,0.002]
[1727294699161,0.16313725,63322.0,63321.0,0.122]
[1727294699854,0.05147225,63322.0,63321.0,0.200966]
[1727294700661,0.003,63322.0,63321.0,0.200966]
[1727294702255,0.3919,63328.0,63327.0,0.078959]
[1727294702463,0.3919,63328.0,63327.0,0.258959]
[1727294702750,0.470857,63328.0,63327.0,0.258959]
[1727294702948,0.470857,63328.0,63327.0,0.078959]
[1727294703545,0.471857,63328.0,63327.0,0.079959]
[1727294703751,0.3929,63328.0,63327.0,0.259959]
[1727294705151,0.3929,63328.0,63327.0,0.45659241]
[1727294705358,0.3929,63328.0,63327.0,0.45657951]
[1727294705546,0.0321,63328.0,63327.0,0.45657951]
[1727294705742,0.0321,63328.0,63327.0,0.37767088]
[1727294705943,0.001,63328.0,63327.0,0.45662988]
[1727294706357,0.001,63328.0,63327.0,0.59665298]
[1727294706858,0.001,63328.0,63327.0,0.60455605]
[1727294707052,0.001,63328.0,63327.0,0.46453295]
[1727294707553,0.3608,63334.0,63333.0,0.078951]
[1727294707759,0.3608,63334.0,63333.0,0.258951]
[1727294709250,0.3608,63334.0,63333.0,0.259951]
[1727294709861,0.3618,63334.0,63333.0,0.260951]
[1727294713161,0.001,63334.0,63333.0,0.260951]
[1727294713859,0.001,63334.0,63333.0,0.30826483]
[1727294715054,0.001,63334.0,63333.0,0.080951]
[1727294720459,0.001,63334.0,63333.0,0.260951]
[1727294722270,0.001,63334.0,63333.0,0.200951]
[1727294731886,0.001,63334.0,63333.0,0.31743711]
[1727294732778,0.001,63334.0,63333.0,0.200951]
[1727294739393,0.001,63334.0,63333.0,0.279902]
[1727294740983,0.001,63334.0,63333.0,0.39390174]
[1727294741179,0.001,63334.0,63333.0,0.52978506]
[1727294741384,0.001,63334.0,63333.0,0.39390174]
[1727294742485,0.001,63334.0,63333.0,0.53027408]
[1727294743787,0.001,63334.0,63333.0,0.89107408]
[1727294746874,0.001,63334.0,63333.0,0.69212308]
[1727294747080,0.001,63334.0,63333.0,0.81212308]
[1727294747284,0.1079415,63339.0,63338.0,0.078945]
[1727294747480,0.11612123,63339.0,63338.0,0.078945]
[1727294747786,0.15790747,63339.0,63338.0,0.078945]
[1727294747975,0.14210866,63341.0,63338.0,0.12]
[1727294748177,0.14210866,63341.0,63340.0,0.638686]
[1727294748683,0.03865668,63341.0,63340.0,0.638686]
[1727294750372,0.03865668,63341.0,63340.0,0.639686]
[1727294750977,0.03865668,63341.0,63340.0,0.640686]
[1727294752378,0.0317,63345.0,63344.0,0.078938]
[1727294752578,0.07035703,63345.0,63344.0,0.198938]
[1727294753984,0.07035703,63345.0,63344.0,0.559738]
[1727294754177,0.07035703,63345.0,63344.0,0.560738]
[1727294754379,0.07035703,63345.0,63344.0,0.561738]
[1727294754576,0.0317,63345.0,63344.0,0.561738]
[1727294754782,0.0317,63345.0,63344.0,0.002]
[1727294754986,0.110636,63345.0,63344.0,0.002]
[1727294755191,0.0317,63345.0,63344.0,0.200938]
[1727294755684,0.0317,63345.0,63344.0,0.561738]
[1727294762585,0.0317,63345.0,63344.0,0.200938]
[1727294763382,0.0317,63345.0,63344.0,0.2482055]
[1727294764283,0.0317,63345.0,63344.0,0.24818161]
[1727294765084,0.0317,63345.0,63344.0,0.200938]
[1727294765797,0.0317,63345.0,63344.0,0.24817364]
[1727294766597,0.0317,63345.0,63344.0,0.279876]
[1727294766798,0.0317,63345.0,63344.0,0.200938]
[1727294766994,0.031,63350.0,63349.0,0.078931]
[1727294767297,0.10993,63350.0,63349.0,0.12]
[1727294767885,0.078933,63348.0,63347.0,0.04722474]
[1727294768298,0.078934,63347.0,63346.0,0.04722474]
[1727294768489,0.078934,63347.0,63345.0,0.078935]
[1727294768490,0.198935,63346.0,63344.0,0.04722867]
[1727294768689,0.078935,63346.0,63344.0,0.04722867]
[1727294768999,0.078938,63344.0,63343.0,0.40802867]
[1727294769297,0.078938,63344.0,63343.0,0.439739]
[1727294770287,0.12739474,63344.0,63343.0,0.439739]
[1727294770495,0.16605399,63344.0,63343.0,0.439739]
[1727294771301,0.16605399,63344.0,63343.0,0.440739]
[1727294771684,0.16605399,63344.0,63343.0,0.441739]
[1727294776392,0.11759725,63344.0,63343.0,0.441739]
[1727294777001,0.11759725,63344.0,63337.0,0.3608]
[1727294777002,0.078939,63343.0,63337.0,0.3608]
[1727294777204,0.22099803,63338.0,63337.0,0.3608]
[1727294777406,0.16606636,63338.0,63337.0,0.3608]
[1727294777903,0.078945,63338.0,63337.0,0.42376769]
[1727294778293,0.078945,63338.0,63337.0,0.50371369]
[1727294778495,0.078945,63338.0,63337.0,0.50471369]
[1727294779999,0.079945,63338.0,63337.0,0.14391369]
[1727294780198,0.079945,63338.0,63337.0,0.080946]
[1727294782707,0.10829859,63338.0,63337.0,0.080946]
[1727294784310,0.10829859,63338.0,63337.0,0.260946]
[1727294785615,0.001,63338.0,63337.0,0.260946]
[1727294790704,0.001,63338.0,63337.0,0.182]
[1727294792010,0.079945,63338.0,63337.0,0.182]
[1727294792412,0.079945,63338.0,63337.0,0.002]
[1727294792810,0.079945,63338.0,63337.0,0.11770188]
[1727294795511,0.04044598,63338.0,63337.0,0.11770188]
[1727294797007,0.04044598,63338.0,63337.0,0.11742502]
[1727294797513,0.11939098,63338.0,63337.0,0.11742502]
[1727294798019,0.15099098,63338.0,63337.0,0.47822502]
[1727294799614,0.07204598,63338.0,63337.0,0.47822502]
[1727294800510,0.07204598,63338.0,63337.0,0.11742502]
[1727294801414,0.15099098,63338.0,63337.0,0.002]
[1727294801616,0.18229098,63338.0,63337.0,0.002]